Cogmind - Beta 13 X2 @@@ ROGUE MODE // 2023.12.22 @ 16:19:23 // Winter2019/RPGLIKE Player: Torako Result: Destroyed by H-55 Commando with Assault Rifle Performance ------------- Evolutions (3) 1500 Regions Visited (5) 1000 Robots Destroyed (71) 355 Value Destroyed (2453) 2453 Prototype IDs (7) 140 Alien Tech Used (0) 0 Bonus (863) 863 TOTAL SCORE: 6311 Bonus ------- High Alert Combat Kills 149 Follower Combat Kills 714 Cogmind --------- Core Integrity 0/1300 Matter 485/600 Energy 182/326 System Corruption 26% Temperature Cool (8) Movement Walking (129) Location -7/Factory Parts ------- > --- POWER (2) -------- Multi-Nuclear Core > --- PROPULSION (2) --- Aluminum-VTOL Exoskeleton > --- UTILITY (3) ------ Armored Scrap Engine Improved Shield Generator (fused) > --- WEAPON (3) ------- Ballistic Autogun Construct/C Hvy. Ballistic Pulse Construct/C > --- INVENTORY (3) ---- Experimental Sensor Array V3-11A's Pendant Heavy Flail Peak State ------------ > --- POWER ------------ Multi-Nuclear Core > --- PROPULSION ------- Aluminum-VTOL Exoskeleton > --- UTILITY ---------- Armored Scrap Engine Improved Shield Generator > --- WEAPON ----------- Hvy. Ballistic Pulse Construct/C Kinetic Spear > --- INVENTORY -------- Experimental Sensor Array V3-11A's Pendant Heavy Flail [Rating: 50] Favorites ----------- Power Improved Ion Engine Engine Improved Ion Engine Power Core Constructs Propulsion Aluminum Leg Leg Aluminum Leg Utility Utility Shielding Device Armored Scrap Engine Protection Utility Shielding Weapon Beam Cannon Energy Gun Subdweller Laser Energy Cannon Beam Cannon Ballistic Gun Subdweller Machine Gun Launcher Subdweller Shrapnel Launcher Impact Weapon Heavy Flail Slashing Weapon Scythe Piercing Weapon Kinetic Spear Build | -11 -10 -10 -10 -9 -7 ------- Run | Yrd Mat Min Sub Rec Fac Slots Evolved 6 | 3 . . . 1 2 Power 1 | . . . . . 1 Propulsion 1 | 1 . . . . . Utility 2 | 1 . . . 1 . Weapon 2 | 1 . . . . 1 Parts Attached 34 | 6 4 2 13 1 8 Power 2 | 1 . . 1 . . Engine 2 | 1 . . 1 . . Core . | . . . . . . Reactor . | . . . . . . Propulsion 2 | 2 . . . . . Treads . | . . . . . . Leg 2 | 2 . . . . . Wheel . | . . . . . . Hover . | . . . . . . Flight . | . . . . . . Utility 12 | 1 2 2 2 1 4 Device 8 | 1 . 1 2 1 3 Storage . | . . . . . . Processor . | . . . . . . Hackware . | . . . . . . Protection 4 | . 2 1 . . 1 Artifact . | . . . . . . Weapon 18 | 2 2 . 10 . 4 Energy Gun 2 | . . . 2 . . Energy Cannon 4 | . 2 . 2 . . Ballistic Gun 7 | 2 . . 5 . . Ballistic Cannon . | . . . . . . Launcher 1 | . . . 1 . . Special Weapon . | . . . . . . Impact Weapon 2 | . . . . . 2 Slashing Weapon 1 | . . . . . 1 Piercing Weapon 1 | . . . . . 1 Special Melee Weapon . | . . . . . . Unidentified Prototypes 3 | . . 1 1 . 1 Corrupted Parts 1 | . . . . . 1 System Corruption 10 | . . . . . 10 Parts Lost 1 | . . . 1 . . Power . | . . . . . . Propulsion . | . . . . . . Utility 1 | . . . 1 . . Weapon . | . . . . . . Highest Loss Streak 1 | . . . 1 . . To Critical Strikes . | . . . . . . Average Slot Usage (%) 81 | . 98 99 98 54 54 Engine 9 | . 14 14 14 7 . Core 2 | . . . . 1 9 Leg 18 | . 28 28 28 4 1 Wheel 1 | . . . . 10 . Flight 2 | . . . . . 8 Device 10 | . 6 . 9 13 16 Protection 12 | . 21 27 18 . . Energy Gun 2 | . . . . 2 4 Energy Cannon 14 | . 20 28 18 2 6 Ballistic Gun 4 | . 7 . 6 11 . Impact Weapon 1 | . . . . . 4 Naked Turns . | . . . . . . Heaviest Build 28 | 10 13 13 17 14 28 Greatest Support 39 | 20 20 20 20 30 39 Greatest Overweight (x) 1 | . . . . 1 1 Average Overweight (x) . | . . . . . . Largest Inventory Capacity 3 | . . 2 3 3 3 Average Capacity 2 | . . 1 2 3 3 Most Carried 3 | . . 2 3 3 3 Average Carried 2 | . . 1 2 3 2 Final Capacity 3 | . . 2 3 3 3 Final Carried 3 | . . 2 3 3 3 Scrap Engine Consumption 140 | . . . . 42 98 Constructs Created 6 | . . . . 4 2 Constructs Modified 30 | . . . . 5 25 Class Distribution -------------------- 64% | Mutant 35% | Construct Dominant Class ---------------- Mutant | -10/Materials Mutant | -10/Mines Mutant | -10/Subcaves Construct | -9/Recycling Construct | -7/Factory Resources | -11 -10 -10 -10 -9 -7 ----------- Run | Yrd Mat Min Sub Rec Fac Matter Collected 1899 | 266 76 48 334 96 1079 Remotely 193 | 127 66 . . . . Salvage Created 2669 | 62 422 106 548 287 1244 Parts 152 | 2 20 11 27 7 85 Haulers Intercepted 1 | . 1 . . . . Recyclers Shooed 1 | . . . . 1 . Parts Field Recycled . | . . . . . . Retrieved Matter . | . . . . . . Parts Self-Destructed 20 | . . . 20 . . Prevented . | . . . . . . Kills | -11 -10 -10 -10 -9 -7 ------- Run | Yrd Mat Min Sub Rec Fac Combat Hostiles Destroyed 53 | . 10 1 10 3 29 Melee 1 | . . . . . 1 Guns 9 | . . . 3 3 3 Cannons 37 | . 10 1 6 . 20 Classes Destroyed 15 | 1 4 1 3 1 5 Worker 3 | . . . . . 3 Builder 3 | . . . . . 3 Tunneler 2 | . . 2 . . . Hauler 1 | . 1 . . . . Recycler 6 | 1 1 1 . 2 1 Turret 2 | . . . 2 . . Watcher 1 | . 1 . . . . Swarmer 11 | . 6 . 2 . 3 Grunt 19 | . 4 1 1 . 13 Brawler 2 | . . . . . 2 Duelist 2 | . . . . 1 1 Sentry 4 | . . . 1 2 1 Specialist 5 | . . . . . 5 Programmer 4 | . . . . . 4 Subdweller 6 | . . . 6 . . Best Kill Streak 6 | 1 3 2 2 1 6 Combat Bots Only 6 | . 3 1 2 1 6 Max Kills in Single Turn 1 | 1 1 1 1 1 1 Gunslinging . | . . . . . . Exploded . | . . . . . . Melee 1 | . . . . . 1 Uniques/NPCs Destroyed . | . . . . . . Combat | -11 -10 -10 -10 -9 -7 -------- Run | Yrd Mat Min Sub Rec Fac Hostile Shots Fired 430 | . 33 8 43 6 340 Missed 119 | . 5 1 14 2 97 Damage Taken 4510 | . 266 101 590 77 3476 Core 3574 | . 197 77 441 60 2799 Absorbed by Shields 387 | . . . . . 387 Redirected to Core 2885 | . 136 66 338 60 2285 Redirected to Shielding 82 | . 24 4 54 . . Regen/Repaired (Parts) 980 | . . . . . 980 Core Remaining (%) 100 | 100 . . . 100 . Volleys Fired 301 | 1 27 14 92 26 141 Largest 2 | 2 2 2 2 1 2 Hottest 186 | 40 120 120 120 33 186 Shots Fired 392 | 2 54 27 119 26 164 Gun 172 | 2 12 . 77 26 55 Cannon 220 | . 42 27 42 . 109 Launcher . | . . . . . . Special . | . . . . . . Kinetic 156 | 2 12 . 54 26 62 Thermal 134 | . 42 27 65 . . Explosive . | . . . . . . Electromagnetic 102 | . . . . . 102 Robot Hit Streak 15 | 2 8 10 15 14 13 Robot Miss Streak 4 | . 2 1 2 2 4 Penetration Max . | . . . . . . Secondary Targets . | . . . . . . Shots Hit Robots 255 | 2 34 20 35 22 142 Core Hits 106 | 2 15 5 17 8 59 Critical Kills 2 | . . . 1 . 1 Critical Parts Destroyed 2 | . . . . . 2 Critical Strikes 4 | . . . 1 . 3 Meltdown 1 | . . . 1 . . Smash 3 | . . . . . 3 Melee Attacks 24 | . . . . . 24 Impact 24 | . . . . . 24 Slashing . | . . . . . . Piercing . | . . . . . . Sneak Attacks 6 | . . . . . 6 Combat Hostiles . | . . . . . . Follow-up Attacks . | . . . . . . Damage Inflicted 5819 | 23 563 349 657 458 3769 Guns 1257 | 23 127 . 270 458 379 Cannons 3512 | . 436 349 387 . 2340 Explosions 157 | . . . . . 157 Melee 888 | . . . . . 888 Ramming 5 | . . . . . 5 Kinetic 2303 | 23 127 . 169 458 1526 Thermal 1430 | . 436 349 488 . 157 Explosive . | . . . . . . Electromagnetic 1193 | . . . . . 1193 Impact 888 | . . . . . 888 Slashing . | . . . . . . Piercing . | . . . . . . Highest Corruption 25 | . 2 2 2 2 25 Average Corruption 3 | . 2 2 2 2 8 Corruption Purged . | . . . . . . Corruption Blocked . | . . . . . . Effects 108 | . 1 10 41 6 50 Message Errors 31 | . . 3 8 4 16 Matter Fused 23 | . . 4 10 1 8 Heat Flow Errors 14 | . 1 2 4 . 7 Energy Discharges 12 | . . . 6 . 6 Parts Rejected 2 | . . . . . 2 Parts Fused 2 | . . . 1 . 1 Data Loss (minor) 14 | . . . 9 1 4 Data Loss (major) 5 | . . . 3 . 2 Weapon Failures 5 | . . 1 . . 4 Overload Shots . | . . . . . . Overflow Damage 449 | . . . . . 449 Projectiles . | . . . . . . Explosions . | . . . . . . Melee 449 | . . . . . 449 Knockbacks 25 | . . . . . 25 Impact 3 | . . . . . 3 Kinetic 15 | . . . . . 15 Secondary 7 | . . . . . 7 Self-Inflicted Damage 32 | . . . . . 32 Shots 1 | . . . . . 1 Rammed . | . . . . . . Targets Rammed 1 | . . . . . 1 Kicked 1 | . . . . . 1 Crushed . | . . . . . . Highest Temperature 782 | . 300 425 501 . 782 Average Temperature 145 | . 112 135 98 . 186 Received Heat Transfer 1029 | . 72 57 603 15 282 Effects 24 | . 2 1 2 . 19 Shutdowns 4 | . . . 1 . 3 Energy Bleed 6 | . 2 1 1 . 2 Interference 1 | . . . . . 1 Matter Decay 1 | . . . . . 1 Damage (minor) 3 | . . . . . 3 Damage (major) 8 | . . . . . 8 Damage (core) 1 | . . . . . 1 Siege Activations . | . . . . . . Robots Corrupted 5 | . . . . . 5 Combat Hostiles 5 | . . . . . 5 Parts Fried 7 | . . . . . 7 Impact Corruptions 16 | . . . . . 16 Robots Melted 1 | . . . 1 . . Combat Hostiles 1 | . . . 1 . . Parts Melted 7 | . . 2 4 1 . Heat Transferred 2754 | . 925 740 939 . 150 Parts Sabotaged . | . . . . . . Parts Stolen . | . . . . . . Parts Stripped . | . . . . . . Power Chain Reactions 2 | . . . . . 2 Missiles Intercepted . | . . . . . . Alert | -11 -10 -10 -10 -9 -7 ------- Run | Yrd Mat Min Sub Rec Fac Peak Influence 598 | 5 312 218 . 412 598 Initial 171 | . 3 43 . . 171 Average 186 | 1 124 49 . 178 272 Maximum Alert Level 2 | . 1 1 . 2 2 Low Security (%) 59 | 100 72 98 . 47 41 Level 1 28 | . 27 1 . 48 37 Level 2 11 | . . . . 3 21 Level 3 . | . . . . . . Level 4 . | . . . . . . Level 5 . | . . . . . . High Security . | . . . . . . Max Security . | . . . . . . Squads Dispatched 14 | . 1 1 . . 12 Investigation 2 | . . . . . 2 Extermination 5 | . . . . . 5 Reinforcement 3 | . 1 . . . 2 Assault 2 | . . 1 . . 1 Garrison 2 | . . . . . 2 Intercept . | . . . . . . Searches Triggered . | . . . . . . Construction Impeded . | . . . . . . Haulers Reinforced . | . . . . . . Active Scanning Responses . | . . . . . . Cargo Convoy Interrupts 1 | . . . . . 1 Stealth | -11 -10 -10 -10 -9 -7 --------- Run | Yrd Mat Min Sub Rec Fac Distress Signals 4 | . 1 1 . . 2 Communications Jammed . | . . . . . . Distress Signals . | . . . . . . Times Spotted 87 | . 14 5 20 9 39 Peak Tracking Total 7 | . 5 4 3 4 7 Tactical Retreats 6 | . 1 . 4 . 1 Traps | -11 -10 -10 -10 -9 -7 ------- Run | Yrd Mat Min Sub Rec Fac Traps Triggered 2 | . 1 . 1 . . Indirectly . | . . . . . . Trap Hack Attempts . | . . . . . . Triggered . | . . . . . . Disarmed . | . . . . . . Reprogrammed . | . . . . . . Reused . | . . . . . . Traps Extracted . | . . . . . . Installed . | . . . . . . Triggered 2 | . . . . . 2 Machines | -11 -10 -10 -10 -9 -7 ---------- Run | Yrd Mat Min Sub Rec Fac Machines Disabled 5 | . 1 . 1 2 1 Max in Single Turn 1 | . 1 . 1 . 1 Garrison Access 1 | . . . . . 1 Machines Repaired . | . . . . . . Machines Dismantled . | . . . . . . Machines Sabotaged . | . . . . . . Overloaded Fab Kills . | . . . . . . Hacking | -11 -10 -10 -10 -9 -7 --------- Run | Yrd Mat Min Sub Rec Fac Machines Accessed 15 | . 2 . 1 7 5 Terminals 8 | . 1 . . 4 3 Fabricators . | . . . . . . Repair Stations . | . . . . . . Recycling Units 6 | . 1 . . 3 2 Scanalyzers . | . . . . . . Garrison Access . | . . . . . . Total Hacks 35 | . 6 . 1 15 13 Successful 14 | . 1 . 1 8 4 Failed 21 | . 5 . . 7 9 Catastrophic 2 | . . . . 1 1 Database Lockouts . | . . . . . . Manual 15 | . 5 . 2 6 2 Terminals 20 | . 4 . . 9 7 Fabricators . | . . . . . . Repair Stations . | . . . . . . Recycling Units 14 | . 2 . . 6 6 Scanalyzers . | . . . . . . Garrison Access . | . . . . . . Terminal Hacks 6 | . . . 1 4 1 Record 1 | . . . 1 . . Branch Access Points 1 | . . . . 1 . Emergency Access Points 1 | . . . . 1 . Terminal Index 1 | . . . . 1 . Alert Level 1 | . . . . 1 . Registered Components 1 | . . . . . 1 Fabricator Hacks . | . . . . . . Repair Station Hacks . | . . . . . . Recycling Unit Hacks 6 | . . . . 3 3 Report Inventory 4 | . . . . 2 2 Retrieve Components 2 | . . . . 1 1 Scanalyzer . | . . . . . . Garrison Access Hacks . | . . . . . . Unauthorized Hacks 2 | . 1 . . 1 . Terminals 1 | . 1 . . . . Track 1 | . 1 . . . . Fabricators . | . . . . . . Repair Stations . | . . . . . . Recycling Units 1 | . . . . 1 . Tunnel 1 | . . . . 1 . Scanalyzers . | . . . . . . Garrison Access . | . . . . . . Data Cores Recovered . | . . . . . . Used . | . . . . . . Hacking Detections 13 | . 2 . . 6 5 Full Trace Events 3 | . 1 . . . 2 Feedback Events . | . . . . . . Feedback Blocked . | . . . . . . Robot Schematics Acquired . | . . . . . . Robots Built . | . . . . . . Authchips . | . . . . . . Time . | . . . . . . Total Robot Build Rating . | . . . . . . Part Schematics Acquired . | . . . . . . Parts Built . | . . . . . . Authchips . | . . . . . . Time . | . . . . . . Total Part Build Rating . | . . . . . . Parts Repaired . | . . . . . . Time . | . . . . . . Parts Recycled . | . . . . . . Recycled Matter . | . . . . . . Retrieved Matter . | . . . . . . Retrieved Components 4 | . . . . 1 3 Parts Scanalyzed . | . . . . . . Part Schematics Acquired . | . . . . . . Parts Damaged . | . . . . . . Bothacking | -11 -10 -10 -10 -9 -7 ------------ Run | Yrd Mat Min Sub Rec Fac Used RIF Installer . | . . . . . . Robots Hacked . | . . . . . . Non-combat . | . . . . . . Combat . | . . . . . . Robot Hacks Applied . | . . . . . . Relay Couplers Released . | . . . . . . Fabnet Peak Effective % . | . . . . . . Robots Rewired . | . . . . . . Allies Hacked . | . . . . . . Hacks Repelled . | . . . . . . Allies | -11 -10 -10 -10 -9 -7 -------- Run | Yrd Mat Min Sub Rec Fac Total Allies 12 | . . 6 6 . . Largest Group 6 | . . 6 6 6 . Highest-Rated Group 114 | . . 113 114 114 . Highest-Rated Ally 31 | . . 31 19 19 . Total Orders . | . . . . . . Ally Attacks 161 | . . 37 15 109 . Total Damage 2780 | . . 597 138 2045 . Kills 29 | . . 7 3 19 . Allies Corrupted . | . . . . . . Allies Melted . | . . . . . . Intel | -11 -10 -10 -10 -9 -7 ------- Run | Yrd Mat Min Sub Rec Fac Robot Analysis Total . | . . . . . . Derelict Logs Recovered 4 | . . 2 2 . . Drone Launches . | . . . . . . Drone Recoveries . | . . . . . . Exploration | -11 -10 -10 -10 -9 -7 ------------- Run | Yrd Mat Min Sub Rec Fac Turns Passed 6653 | 50 418 892 2794 615 1884 Spaces Moved 4446 | 34 235 616 2068 413 1080 Core 3 | 3 . . . . . Treads 33 | . . . . . 33 Legs 3083 | 31 235 616 2068 52 81 Wheels 408 | . . . . 361 47 Hover . | . . . . . . Flight 919 | . . . . . 919 Fastest Speed 50 | 50 120 120 120 97 60 Average Speed 121 | 113 120 120 120 114 128 Slowest Speed 194 | 120 120 120 120 194 194 Overloaded Moves . | . . . . . . Propulsion Burnouts . | . . . . . . Robots Hopped 9 | . . . . . 9 Cave-ins Triggered . | . . . . . . Exploration Rate (%) 56 | 3 41 97 91 80 28 Regions Visited 5 Branch Regions 3 Pre-discovered Areas 2 | . . . 1 1 . Known Exits Taken . | . . . . . . Unknown Exits Taken 5 | 1 1 1 1 1 . Scrap Searched 7 | . . 3 4 . . Spaces Dug 8 | . . . 6 . 2 Terrain Destroyed 21 | . . . 8 1 12 Melee 2 | . . . . . 2 Projectile 16 | . . . 8 1 7 AOE 3 | . . . . . 3 Terrain Rammed . | . . . . . . Walls Destroyed . | . . . . . . Machines Disabled . | . . . . . . Actions | -11 -10 -10 -10 -9 -7 --------- Run | Yrd Mat Min Sub Rec Fac Total 5262 | 40 316 741 2258 535 1372 Wait 295 | . 43 93 61 61 37 Move 4425 | 33 234 615 2067 412 1064 Hop 7 | . . . . . 7 Pick Up 15 | . . 1 5 3 6 Fast Attach 28 | 6 4 2 8 1 7 Attach 3 | . . . 2 . 1 Detach 10 | . . 1 1 3 5 Swap 3 | . . . 3 . . Drop 34 | . 3 1 11 9 10 Fire 301 | 1 27 14 92 26 141 Melee 24 | . . . . . 24 Ram . | . . . . . . Kick 1 | . . . . . 1 Crush . | . . . . . . Escape Stasis . | . . . . . . Rewire 1 | . . . . 1 . Trap . | . . . . . . Miscellaneous 115 | . 5 14 8 19 69 Route ------- -11/Scrapyard -10/Materials (discovered 2 exits: [*Mat] / [*Min]) -10/Mines (discovered 3 exits: [*Mat x2] / *Sub) -10/Subcaves (discovered 3 exits: [*Mat x2] / *Rec) -9/Recycling -7/Factory (discovered 1 exit: [*Fac]) History --------- Turn | Location | Event 2 | -11/Scrapyard | Upgraded with Propulsion slot (x1) 2 | -11/Scrapyard | Upgraded with Utility slot (x1) 2 | -11/Scrapyard | Upgraded with Weapon slot (x1) 12 | -11/Scrapyard | Discovered new exit (range 15) 51 | -11/Scrapyard | Entered Materials 288 | -10/Materials | Discovered new exit (range 11) 315 | -10/Materials | Build established: Mutant 373 | -10/Materials | Discovered new exit (range 16) 469 | -10/Materials | Entered Mines 471 | -10/Mines | Reached level 2 497 | -10/Mines | Found a damaged Exp. Sensor Array with a note attached 500 | -10/Mines | Found Prototype Device 500 | -10/Mines | Identified Exp. Sensor Array 543 | -10/Mines | Met a Derelict testing a Signal Generator 727 | -10/Mines | Learned Materials trap positions 727 | -10/Mines | Assisted by bots powering up and referring to "LRC-V3" 845 | -10/Mines | Reached level 3 857 | -10/Mines | Learned Materials stockpile data 967 | -10/Mines | Discovered new exit (range 5) 1059 | -10/Mines | Received a Rocket Launcher from a helpful Derelict 1059 | -10/Mines | Discovered new exit (range 9) 1337 | -10/Mines | Discovered new exit (range 5) 1361 | -10/Mines | Entered Subcaves 1361 | -10/Subcaves | Accompanied by 3 allies 1902 | -10/Subcaves | A swath of the cavern ceiling suddenly collapsed 2066 | -10/Subcaves | Discovered new exit (range 10) 2069 | -10/Subcaves | Shifting Twisted Machinery released Mak. Thermal Plating 2072 | -10/Subcaves | Shifting Twisted Machinery released Sub. Laser 2108 | -10/Subcaves | Reached level 4 2198 | -10/Subcaves | Learned location of Storage (-9) 2343 | -10/Subcaves | Discovered new exit (range 16) 2500 | -10/Subcaves | Disturbed a concealed Subdweller 2640 | -10/Subcaves | Ambushed by Subdweller buried in earth 2653 | -10/Subcaves | Core integrity fell below 50% 2856 | -10/Subcaves | Visited Clippyterm 2906 | -10/Subcaves | Visited triangular shrine 2914 | -10/Subcaves | Found Prototype Device 2914 | -10/Subcaves | Identified V3-11A's Pendant 2919 | -10/Subcaves | Befriended Subdweller 3355 | -10/Subcaves | Shifting Twisted Machinery released Sub. Monowheel 3366 | -10/Subcaves | Shifting Twisted Machinery released Flamer 3414 | -10/Subcaves | Befriended Subdweller 3414 | -10/Subcaves | Befriended Subdweller 3452 | -10/Subcaves | Learned 2 Materials zone layouts 3466 | -10/Subcaves | Discovered new exit (range 11) 3654 | -10/Subcaves | Befriended Subdweller 3774 | -10/Subcaves | Befriended Subdweller 3778 | -10/Subcaves | Shifting Twisted Machinery released Sub. Shrapnel Launcher 3882 | -10/Subcaves | Shifting Twisted Machinery released Hvy. Battle Rifle 3889 | -10/Subcaves | Befriended Subdweller 4155 | -10/Subcaves | Entered Recycling 4155 | -9/Recycling | Accompanied by 6 allies 4157 | -9/Recycling | Reached level 5 4157 | -9/Recycling | Found Scrap Engine 4456 | -9/Recycling | Reached level 6 4603 | -9/Recycling | Build established: Construct 4692 | -9/Recycling | Upgraded with Utility slot (x1) 4733 | -9/Recycling | Discovered new exit (range 15) 4770 | -9/Recycling | Entered Factory 4772 | -7/Factory | Reached level 7 4772 | -7/Factory | Upgraded with Power slot (x1) 5118 | -7/Factory | Core integrity fell below 50% 5130 | -7/Factory | Reached level 8 5371 | -7/Factory | Core integrity fell below 20% 5527 | -7/Factory | Discovered new exit (range 7) 5619 | -7/Factory | Garrison activated, responded to threat 5782 | -7/Factory | Upgraded with Weapon slot (x1) 5783 | -7/Factory | Reached level 9 5907 | -7/Factory | Cargo convoy interrupted 6153 | -7/Factory | System corruption reached 10% 6308 | -7/Factory | Reached level 10 6654 | -7/Factory | Destroyed by H-55 Commando with Assault Rifle Last Messages --------------- Upgraded: Heat Dissipation (+18) P-60 Hacker knocked back. P-60 Hacker resets X-67 Chaingunner, system corruption cleaned. Arm. Scrap Engine reinforces its armored shell (+17). Slug penetrates Wall. R-06 Scavenger collects Imp. Cooling System. X-67 Chaingunner knocked back. Arm. Scrap Engine constructs Ballistic Autogun Construct/C. Upgraded: Heat Dissipation (+18) K-01 Serf collects debris. R-06 Scavenger collects Imp. Heat Sink. Wall collapses. Penetrated by Slug. R-06 Scavenger collects Adv. Visual Processing Unit. K-01 Serf collects debris. System corrupted: Hvy. Ballistic Pulse Construct/C failed to cycle. H-55 Commando knocked back. Slug penetrates I-36 Angel. K-01 Serf collects debris. Penetrated by Slug. Map ----- +----------------------------------------------------+ | ???????????## """ """ # #???????????? | | #+#######???????????## """ """ # #???????????? | | ?????????????????????# "" "" + #???????????? | | ?????????????????????# ""! ""*# #???????????? | | ??????????????? ?????# ![%!=# #???????????? | | ??????????????# ????######+#### #???????????? | | ?????????????## ######! ! #???????????? | | ?????????????# !####### #???????????? | | ?????????????# #?????# #???????????? | | ?????????????+ """ """ +?????# #???????????? | | ?????????????# """ """ #?????? #???????????? | | ?????????????# """ """ #?????? #???????????? | | ?????????????# #?????? #???????????? | | ???????? """ """ #?????? #???????????? | | ????????????????""" """% #?????? #???????????? | | ???????? """ """ #?????? #???????????? | | ???????? % #?????? %#???????????? | | ???????? """ " "" ##??????? %#???????????? | | ????????????????""" "R" #?????? #???????????? | | ??????????? """ """ #????? % #???????????? | | ?????????? ######%% #???????????? | | ?????????? u [ #???????????? | | ????????????############# % %%% #???????????? | | ???????????????# #r %% #???????????? | | ???????????????# #= k% #???????????? | | ???????????????# [#@i[*% # ??????????? | | ???????????????# ;!x=* %= #???????????? | | ???????????????# pphp]=]%[ % ???????? | | ???????????????# ;=########+#####+????????? | | ???????????????# !#!#??????????????????????? | | ???????????????# /#*#??????????????????????? | | ???????????????# # #??????????????????????? | | ???????????????########## #??????????????=???????? | | #####??????????????????? ??????????????????????? | | ????????????? ??????????????????????? | | ????????????? ??????????????????????? | | ?????????????#+#??????????????????????? | | ???????????????????????????????????????? | | ???????????????????????????????????????? | | #########????????????????????????????????????????? | | ?????????????????????????????????????????????????? | | ?????????????????????????????????????????????????? | | ?????????????????????????????????????????????????? | | ?????????????????????????????????????????????????? | | ?????????????????????????????????????????????????? | | ?????????????????????????????????????????????????? | | ?????????????????????????????????????????????????? | | ?????????????????????????????????????????????????? | | ?????????????????????????????????????????????????? | | ?????????????????????????????????????????????????? | +----------------------------------------------------+ Best States ------------- Heat Dissipation 103 Energy Generation 25 Energy Capacity 416 Matter Stores 600 Matter Capacity 600 Sight Range 16 Robot Scan Range 20 Terrain Scan Density 10 ECM Strength 1 Jamming Range 12 Armor Coverage 225 Resistance: TH 15 Utility Shielding 33 Weapon Shielding 33 Evasion (%) 58 Recoil Reduction 2 Item Schematics ----------------- None Robot Schematics ------------------ None Fabricated ------------ Nothing Alien Tech Used ----------------- None Achievements -------------- None Challenges ------------ None RPGLIKE | -11 -10 -10 -10 -9 -7 --------- Run | Yrd Mat Min Sub Rec Fac Levels Raised 9 | . . 2 1 2 4 XP Earned 17656 | 3000 1345 1844 1871 3581 6015 XP Spent 15045 | 3000 . 750 750 800 9745 Upgrades 49 | 6 . 2 1 1 39 Power Slot 1 | . . . . . 1 Propulsion Slot 1 | 1 . . . . . Utility Slot 2 | 1 . . . 1 . Weapon Slot 2 | 1 . . . . 1 Core Integrity 14 | . . . . . 14 Heat Dissipation 13 | . . . . . 13 Matter Storage 6 | . . . . . 6 Mass Support 4 | . . . . . 4 Inventory Capacity 3 | . . 2 1 . . Ranged Accuracy 3 | 3 . . . . . Protomatter Created 823 | . 72 42 9 125 575 Integrity Restored 2400 | . 120 245 153 365 1517 Core 2265 | . 120 154 153 348 1490 Parts 135 | . . 91 . 17 27 Protomatter Decayed 634 | . 17 25 149 187 256 Game ------ Seed MappingSuperchargedSpoofer Manual? 0 Play Time 00:55:47 Cumulative 346.7 hours Start 2023.12.22 @ 15:06:56 End 2023.12.22 @ 16:19:23 Sessions 1 Manual Loads 0 Difficulty Rogue Special Mode Winter2019/RPGLIKE Game No. 335 Rogue 335 Adventurer 0 Explorer 0 Win Type - Total 25 Types 19/0/4/2/0/0/0/0/0 Lore% 80 Gallery% 88 Achievement% 80 Wizard Run 0 Options --------- ASCII 0 Keyboard 1 Movement Numpad Keybinds 0 Fullscreen 1 Font 18/SmallcapsGlow Map View 76x50 Zoom Use 0% Tactical HUD 1 Map Filters NONE Filters NONE Steam 1 RUN: 2876dcab-b789-491f-9745-5dada70b6b8d